Cogmind - Beta 12 @@@ ROGUE MODE // 2023.07.11 @ 16:07:59 Player: Senator Honkstrong Result: Destroyed by D-53 Grenadier with Mini Grenade Launcher Performance ------------- Evolutions (0) 0 Regions Visited (2) 400 Robots Destroyed (34) 170 Value Destroyed (671) 671 Prototype IDs (4) 80 Alien Tech Used (0) 0 Bonus (0) 0 TOTAL SCORE: 1321 Bonus ------- None Cogmind --------- Core Integrity 0/250 Matter 290/300 Energy 81/160 System Corruption 0% Temperature Cool (5) Movement Treading (160) Location -10/Mines Parts ------- > --- POWER (1) -------- Light Nuclear Core > --- PROPULSION (2) --- Light Treads Light Treads > --- UTILITY (2) ------ Large Storage Unit Hacking Suite > --- WEAPON (2) ------- Beam Cannon Assault Rifle > --- INVENTORY (15) --- Light Treads High-capacity Battery (250) Small Laser Particle Gun Assault Rifle Assault Rifle Light Assault Rifle Rocket Launcher Datajack Peak State ------------ > --- POWER ------------ Light Nuclear Core > --- PROPULSION ------- Light Treads Light Treads > --- UTILITY ---------- Large Storage Unit Hacking Suite > --- WEAPON ----------- Beam Cannon Light Assault Rifle > --- INVENTORY -------- Light Treads Light Treads High-capacity Battery Small Laser Particle Gun Assault Rifle Assault Rifle Grenade Launcher Datajack [Rating: 12] Favorites ----------- Power Ion Engine Engine Ion Engine Power Core Light Nuclear Core Propulsion Light Treads Treads Light Treads Utility Small Storage Unit Storage Small Storage Unit Hackware Hacking Suite Protection Weapon Shielding Weapon Light Assault Rifle Energy Gun Particle Gun Energy Cannon Beam Cannon Ballistic Gun Light Assault Rifle Build | -11 -10 -10 ------- Run | Jun Mat Min Slots Evolved . | . . . Power . | . . . Propulsion . | . . . Utility . | . . . Weapon . | . . . Parts Attached 23 | 6 14 3 Power 3 | 1 1 1 Engine 1 | 1 . . Core 2 | . 1 1 Reactor . | . . . Propulsion 9 | 2 5 2 Treads 9 | 2 5 2 Leg . | . . . Wheel . | . . . Hover . | . . . Flight . | . . . Utility 4 | 1 3 . Device . | . . . Storage 2 | 1 1 . Processor . | . . . Hackware 1 | . 1 . Protection 1 | . 1 . Artifact . | . . . Weapon 7 | 2 5 . Energy Gun 2 | . 2 . Energy Cannon 1 | . 1 . Ballistic Gun 4 | 2 2 . Ballistic Cannon . | . . . Launcher . | . . . Special Weapon . | . . . Impact Weapon . | . . . Slashing Weapon . | . . . Piercing Weapon . | . . . Special Melee Weapon . | . . . Unidentified Prototypes . | . . . Parts Lost 3 | . . 3 Power 1 | . . 1 Propulsion 2 | . . 2 Utility . | . . . Weapon . | . . . Highest Loss Streak 3 | . . 3 To Critical Strikes . | . . . Average Slot Usage (%) 98 | . 98 96 Engine 7 | . 7 . Core 6 | . 6 10 Treads 27 | . 27 28 Storage 14 | . 14 14 Hackware 4 | . 3 14 Protection 9 | . 10 . Energy Gun 5 | . 5 . Energy Cannon 8 | . 8 14 Ballistic Gun 14 | . 14 14 Naked Turns . | . . . Heaviest Build 30 | 14 30 30 Greatest Support 40 | 40 40 40 Greatest Overweight (x) 4 | . 4 . Average Overweight (x) . | . . . Largest Inventory Capacity 15 | 8 15 15 Average Capacity 10 | 7 10 15 Most Carried 11 | . 10 11 Average Carried 7 | . 7 10 Final Capacity 15 | 8 15 15 Final Carried 10 | . 10 9 Class Distribution -------------------- 100% | Mutant Dominant Class ---------------- Mutant | -10/Materials Mutant | -10/Mines Resources | -11 -10 -10 ----------- Run | Jun Mat Min Matter Collected 690 | 327 328 35 Remotely . | . . . Salvage Created 1327 | 195 1047 85 Parts 66 | 16 45 5 Haulers Intercepted 2 | . 2 . Recyclers Shooed 2 | . 2 . Parts Field Recycled . | . . . Retrieved Matter . | . . . Parts Self-Destructed . | . . . Prevented . | . . . Kills | -11 -10 -10 ------- Run | Jun Mat Min Combat Hostiles Destroyed 13 | . 11 2 Guns 12 | . 10 2 Cannons 1 | . 1 . Classes Destroyed 7 | 3 4 . Worker 5 | 2 3 . Tunneler 4 | 4 . . Hauler 2 | . 2 . Recycler 5 | 1 4 . Operator 2 | . 2 . Watcher 3 | . 3 . Grunt 13 | . 11 2 Best Kill Streak 5 | 5 3 2 Combat Bots Only 2 | . 2 2 Max Kills in Single Turn 1 | 1 1 1 Gunslinging . | . . . Exploded . | . . . Melee . | . . . Uniques/NPCs Destroyed . | . . . Combat | -11 -10 -10 -------- Run | Jun Mat Min Damage Taken 1258 | . 546 712 Core 260 | . 106 154 Absorbed by Shields . | . . . Redirected to Shielding 35 | . 35 . Regen/Repaired (Parts) 270 | . 270 . Core Remaining (%) 100 | 100 . . Volleys Fired 111 | 18 85 8 Largest 2 | 2 2 2 Hottest 85 | 40 85 80 Shots Fired 220 | 36 168 16 Gun 177 | 36 133 8 Cannon 43 | . 35 8 Launcher . | . . . Special . | . . . Kinetic 142 | 36 98 8 Thermal 78 | . 70 8 Explosive . | . . . Electromagnetic . | . . . Robot Hit Streak 13 | 6 13 4 Robot Miss Streak 4 | 3 4 2 Penetration Max . | . . . Secondary Targets 1 | . 1 . Max Gunslinging Chain 1 | . 1 . Shots Hit Robots 127 | 16 100 11 Core Hits 58 | 8 46 4 Critical Kills . | . . . Critical Parts Destroyed . | . . . Critical Strikes 6 | . 6 . Burn 6 | . 6 . Melee Attacks . | . . . Impact . | . . . Slashing . | . . . Piercing . | . . . Sneak Attacks . | . . . Combat Hostiles . | . . . Follow-up Attacks . | . . . Damage Inflicted 1666 | 197 1267 202 Guns 1264 | 197 974 93 Cannons 389 | . 280 109 Explosions . | . . . Melee . | . . . Ramming 13 | . 13 . Kinetic 830 | 197 540 93 Thermal 823 | . 714 109 Explosive . | . . . Electromagnetic . | . . . Impact . | . . . Slashing . | . . . Piercing . | . . . Highest Corruption . | . . . Average Corruption . | . . . Corruption Purged . | . . . Corruption Blocked . | . . . Overload Shots . | . . . Overflow Damage 5 | . 5 . Projectiles 5 | . 5 . Explosions . | . . . Melee . | . . . Knockbacks . | . . . Impact . | . . . Kinetic . | . . . Secondary . | . . . Self-Inflicted Damage 90 | . 90 . Shots 1 | . 1 . Rammed 4 | . 4 . Targets Rammed 4 | . 4 . Kicked . | . . . Crushed . | . . . Highest Temperature 301 | . 301 94 Average Temperature 74 | . 77 49 Received Heat Transfer 423 | . 294 129 Siege Activations . | . . . Robots Corrupted . | . . . Combat Hostiles . | . . . Parts Fried . | . . . Impact Corruptions . | . . . Robots Melted . | . . . Combat Hostiles . | . . . Parts Melted 3 | . 3 . Heat Transferred 2294 | . 2072 222 Parts Sabotaged . | . . . Parts Stolen . | . . . Parts Stripped . | . . . Power Chain Reactions . | . . . Missiles Intercepted . | . . . Alert | -11 -10 -10 ------- Run | Jun Mat Min Peak Influence 175 | 35 175 59 Initial 24 | . 22 24 Average 70 | 14 78 25 Maximum Alert Level . | . . . Low Security (%) 100 | 100 100 100 Level 1 . | . . . Level 2 . | . . . Level 3 . | . . . Level 4 . | . . . Level 5 . | . . . High Security . | . . . Max Security . | . . . Squads Dispatched 3 | . 3 . Investigation . | . . . Extermination . | . . . Reinforcement 3 | . 3 . Assault . | . . . Garrison . | . . . Intercept . | . . . Searches Triggered . | . . . Construction Impeded . | . . . Haulers Reinforced . | . . . Active Scanning Responses . | . . . Cargo Convoy Interrupts . | . . . Stealth | -11 -10 -10 --------- Run | Jun Mat Min Distress Signals . | . . . Communications Jammed . | . . . Distress Signals . | . . . Times Spotted 35 | . 22 13 Peak Tracking Total 10 | . 2 10 Tactical Retreats . | . . . Traps | -11 -10 -10 ------- Run | Jun Mat Min Traps Triggered 2 | . 2 . Indirectly . | . . . Trap Hack Attempts . | . . . Triggered . | . . . Disarmed . | . . . Reprogrammed . | . . . Reused . | . . . Traps Extracted . | . . . Installed . | . . . Triggered . | . . . Machines | -11 -10 -10 ---------- Run | Jun Mat Min Machines Disabled 3 | . 3 . Max in Single Turn 2 | . 2 . Machines Repaired . | . . . Machines Sabotaged . | . . . Overloaded Fab Kills . | . . . Hacking | -11 -10 -10 --------- Run | Jun Mat Min Machines Accessed 8 | . 8 . Terminals 5 | . 5 . Fabricators . | . . . Repair Stations 1 | . 1 . Recycling Units 2 | . 2 . Scanalyzers . | . . . Garrison Access . | . . . Total Hacks 23 | . 23 . Successful 14 | . 14 . Failed 8 | . 8 . Catastrophic . | . . . Database Lockouts 1 | . 1 . Manual 10 | . 10 . Terminals 15 | . 15 . Fabricators . | . . . Repair Stations 6 | . 6 . Recycling Units 2 | . 2 . Scanalyzers . | . . . Garrison Access . | . . . Terminal Hacks 7 | . 7 . Robot Analysis 2 | . 2 . Prototype ID Bank 2 | . 2 . Unreport Threat 2 | . 2 . Locate Traps 1 | . 1 . Fabricator Hacks . | . . . Repair Station Hacks 4 | . 4 . Scan Component 2 | . 2 . Repair 2 | . 2 . Recycling Unit Hacks 1 | . 1 . Retrieve Components 1 | . 1 . Scanalyzer . | . . . Garrison Access Hacks . | . . . Unauthorized Hacks 2 | . 2 . Terminals 2 | . 2 . Botnet 2 | . 2 . Fabricators . | . . . Repair Stations . | . . . Recycling Units . | . . . Scanalyzers . | . . . Garrison Access . | . . . Data Cores Recovered . | . . . Used . | . . . Hacking Detections 7 | . 7 . Full Trace Events . | . . . Feedback Events . | . . . Feedback Blocked . | . . . Robot Schematics Acquired . | . . . Robots Built . | . . . Authchips . | . . . Time . | . . . Total Robot Build Rating . | . . . Part Schematics Acquired . | . . . Parts Built . | . . . Authchips . | . . . Time . | . . . Total Part Build Rating . | . . . Parts Repaired 2 | . 2 . Time 52 | . 52 . Parts Recycled . | . . . Recycled Matter . | . . . Retrieved Matter . | . . . Retrieved Components 5 | . 5 . Parts Scanalyzed . | . . . Part Schematics Acquired . | . . . Parts Damaged . | . . . Bothacking | -11 -10 -10 ------------ Run | Jun Mat Min Used RIF Installer . | . . . Robots Hacked . | . . . Non-combat . | . . . Combat . | . . . Robot Hacks Applied . | . . . Relay Couplers Released . | . . . Fabnet Peak Effective % . | . . . Robots Rewired . | . . . Allies Hacked . | . . . Hacks Repelled . | . . . Allies | -11 -10 -10 -------- Run | Jun Mat Min Total Allies . | . . . Largest Group . | . . . Highest-Rated Group . | . . . Highest-Rated Ally . | . . . Total Orders . | . . . Ally Attacks . | . . . Total Damage . | . . . Kills . | . . . Allies Corrupted . | . . . Allies Melted . | . . . Intel | -11 -10 -10 ------- Run | Jun Mat Min Robot Analysis Total 2 | . 2 . Derelict Logs Recovered . | . . . Drone Launches . | . . . Drone Recoveries . | . . . Exploration | -11 -10 -10 ------------- Run | Jun Mat Min Turns Passed 2472 | 197 2125 150 Spaces Moved 1096 | 88 933 75 Core 6 | 5 1 . Treads 1090 | 83 932 75 Legs . | . . . Wheels . | . . . Hover . | . . . Flight . | . . . Fastest Speed 50 | 50 160 160 Average Speed 159 | 153 160 160 Slowest Speed 250 | 160 250 160 Overloaded Moves . | . . . Propulsion Burnouts . | . . . Robots Hopped . | . . . Cave-ins Triggered . | . . . Exploration Rate (%) 42 | 6 97 25 Regions Visited 2 Branch Regions 1 Pre-discovered Areas . | . . . Known Exits Taken . | . . . Unknown Exits Taken 2 | 1 1 . Scrap Searched 1 | . . 1 Spaces Dug . | . . . Terrain Destroyed 53 | . 53 . Melee . | . . . Projectile . | . . . AOE 53 | . 53 . Terrain Rammed . | . . . Walls Destroyed . | . . . Machines Disabled . | . . . Actions | -11 -10 -10 --------- Run | Jun Mat Min Total 1603 | 111 1403 89 Wait 354 | . 354 . Move 1094 | 87 932 75 Hop . | . . . Pick Up 11 | . 9 2 Fast Attach 17 | 6 10 1 Attach 2 | . . 2 Detach . | . . . Swap 4 | . 4 . Drop 6 | . 5 1 Fire 111 | 18 85 8 Melee . | . . . Ram . | . . . Kick . | . . . Crush 4 | . 4 . Escape Stasis . | . . . Rewire . | . . . Trap . | . . . Miscellaneous . | . . . Route ------- -11/Junkyard -10/Materials (discovered 4 exits: [*Mat x3] / [*Min]) -10/Mines History --------- Turn | Location | Event 23 | -11/Junkyard | Discovered new exit (range 15) 198 | -11/Junkyard | Entered Materials 315 | -10/Materials | Build established: Mutant 493 | -10/Materials | Discovered new exit (range 13) 1072 | -10/Materials | Discovered new exit (range 16) 1122 | -10/Materials | Central database locked down 1413 | -10/Materials | Discovered new exit (range 16) 1729 | -10/Materials | Repaired Lgt. Treads 1755 | -10/Materials | Repaired Lgt. Treads 2100 | -10/Materials | Discovered new exit (range 3) 2323 | -10/Materials | Entered Mines 2330 | -10/Mines | Received a Rocket Launcher from a helpful Derelict 2409 | -10/Mines | Assembled infested the area 2425 | -10/Mines | Core integrity fell below 50% 2436 | -10/Mines | Core integrity fell below 20% 2473 | -10/Mines | Destroyed by D-53 Grenadier with Mini Grenade Launcher Last Messages --------------- 02450_ Lgt. Treads destroyed. 02451_ U-05 Engineer lays Concrete. 02452_ as-43363 destroyed. 02452_ U-05 Engineer builds a Wall. 02455_ The unstable cave ceiling collapses. 02455_ R-06 Scavenger collects Lgt. Ion Engine. 02456_ The unstable cave ceiling collapses. 02456_ U-05 Engineer builds a Wall. 02456_ Critical hit (Burn: +37). 02460_ G-47 Trooper destroyed. 02460_ U-05 Engineer lays Concrete. 02462_ U-05 Engineer builds a Wall. 02464_ The unstable cave ceiling collapses. 02466_ G-34 Mercenary destroyed. 02466_ U-05 Engineer builds a Wall. 02467_ U-05 Engineer lays Concrete. 02469_ Acquired 35 matter. 02471_ U-05 Engineer builds a Wall. 02472_ Acquired Lgt. Nuclear Core. 02473_ The unstable cave ceiling collapses. Map ----- +----------------------------------------------------+ | ?????????????????????????############## #??? | | ????????????????????? ?????????????# #??? | | ????????????????????? ?????????????# #??? | | ????????????????????? ??????????#### #??? | | ????????????????????? #??????#### #??? | | ????????????????????? #?????## #??? | | ????????????????????? #?????# #??? | | ?????????????????????? ??????# ##?? | | ?????????????????????? ??????## #?? | | ?????????????????????? ?###???## #?? | | ?????????????????????? ? #????## #?? | | ?????????????????????? ?# #??#### ##? | | ?????????????????????? ?# #??# #? | | ??????????????????????# #?# #??# ## #? | | ???????????????###????# #?# #??# ## ##? | | ??????????????## ##### ### #### #?? | | ?????????????## # %!## #?? | | ?????????????# #%############ ##?? | | ?????????????# ##????????## #??? | | ?????????????# u #?????????## ##??? | | ?????????????## # # #??????????####???? | | ?????????????## ##u##?????????????????? | | ????????????## # # #######????????????? | | ???????????## # [[ ?????????????? | | ?????????? # d #!%%#?????????????????? | | ?????????? *@#?????????????????? | | ?????????? # #?????????????????? | | ??????? " r d #?????????????????? | | ?????????## # # %#?????????????????? | | ??????????? # # #????????????????? | | ???????????? # #### #????????????????? | | ???????????? # ###???#####????????????????? | | ???????????? ? ????????????????????????????? | | ????????????? ??????????????????????????????? | | ????????????????????????????????????????????? | | ????????????????????????????????????????????? | | ????????????????????????????????????????????? | | ????????????????????????????????????????????? | | ????????????????????????????????????????????? | | ????????????????????????????????????????????? | | ????????????????????????????????????????????? | | ????????????????????????????????????????????? | | | | | | | | | | | | | | | | | +----------------------------------------------------+ Best States ------------- Heat Dissipation 25 Energy Generation 14 Energy Capacity 250 Matter Stores 300 Matter Capacity 300 Sight Range 16 Terrain Scan Density 10 Weapon Shielding 33 Evasion (%) 40 Recoil Reduction 2 Offensive Hacking 10 Item Schematics ----------------- None Robot Schematics ------------------ None Fabricated ------------ Nothing Alien Tech Used ----------------- None Achievements -------------- None Challenges ------------ None Game ------ Seed SwarmCouplerPod Manual? 0 Play Time 00:14:43 Cumulative 34.2 hours Start 2023.07.11 @ 15:55:13 End 2023.07.11 @ 16:07:59 Sessions 1 Manual Loads 0 Difficulty Rogue Special Mode None Game No. 26 Rogue 26 Adventurer 0 Explorer 0 Win Type - Total 0 Types 0/0/0/0/0/0/0/0/0 Lore% 26 Gallery% 29 Achievement% 28 Wizard Run 0 Options --------- ASCII 0 Keyboard 0 Movement Mouse Keybinds 0 Fullscreen 1 Font 18/SmallcapsGlow Map View 76x50 Tactical HUD 1 Map Filters NONE Filters NONE Steam X RUN: 828cfe05-2a62-4670-b5be-5d6699cd691b